bitfinex/quotes_SOLUSD_20220216
["timestamp","ask_amount","ask_price","bid_price","bid_amount"]
[1645020832887,0.03945964,99.939,99.85,14.4]
[1645020833086,0.03945964,99.939,99.831,49.64]
[1645020833486,0.03945964,99.939,99.835,98.08]
[1645020833689,0.25,99.94,99.835,98.08]
[1645020833888,15.0171,99.93,99.86,15.0167]
[1645020834087,0.25,99.94,99.836,59.62]
[1645020834288,6.0,99.95,99.862,49.64]
[1645020834590,6.0,99.95,99.84,14.4]
[1645020834591,0.9015,99.949,99.83,14.4]
[1645020834793,14.4,99.94,99.823,76.5966]
[1645020835088,98.08,99.919,99.78,14.4]
[1645020835295,105.81,99.919,99.79,2.24219713]
[1645020835491,14.4,99.91,99.79,2.24219713]
[1645020835689,0.25,99.909,99.79,2.24219713]
[1645020835888,0.25,99.909,99.791,48.5549]
[1645020836089,0.25,99.909,99.792,59.62]
[1645020836290,0.25,99.909,99.792,61.86219713]
[1645020836492,0.25,99.909,99.797,49.64]
[1645020836689,0.25,99.909,99.802,59.62]
[1645020836891,15.0215,99.9,99.803,49.64]
[1645020837092,15.0215,99.9,99.805,49.64]
[1645020837892,15.0215,99.9,99.806,2.24219713]
[1645020838692,15.0215,99.9,99.805,49.64]
[1645020838891,15.0215,99.9,99.811,49.64]
[1645020839294,0.25,99.909,99.815,49.64]
[1645020839492,14.4,99.93,99.815,73.4818]
[1645020839693,14.4,99.93,99.816,2.24219713]
[1645020839895,98.08,99.924,99.816,2.24219713]
[1645020840093,98.08,99.924,99.82,15.0209]
[1645020840293,98.08,99.909,99.82,15.0209]
[1645020840893,0.25,99.899,99.82,15.0209]
[1645020843897,15.0229,99.89,99.815,73.4818]
[1645020845501,0.25,99.899,99.815,73.4818]
[1645020845699,0.25,99.899,99.82,15.0212]
[1645020848105,15.0215,99.9,99.82,15.0212]
[1645020848707,98.08,99.899,99.82,15.0212]
[1645020848907,15.025,99.88,99.815,23.8418]
[1645020849131,22.375,99.88,99.815,23.8418]
[1645020849328,0.25,99.87,99.815,23.8418]
[1645020850533,0.25,99.87,99.792,49.64]
[1645020850932,98.08,99.869,99.784,2.8996801]
[1645020851335,2.44017527,99.868,99.784,2.8996801]
[1645020851532,98.7775,99.867,99.784,2.8996801]
[1645020851733,98.08,99.867,99.751,23.1943]
[1645020851933,98.08,99.865,99.751,23.1943]
[1645020852134,14.4,99.85,99.751,23.1943]
[1645020852333,15.0324,99.83,99.751,23.1943]
[1645020853735,15.0324,99.83,99.751,38.2151]
[1645020855339,22.7821,99.848,99.76,15.0295]
[1645020855537,64.5013,99.87,99.76,15.0295]
[1645020855837,46.4075,99.869,99.76,15.0295]
[1645020856041,98.08,99.868,99.76,15.0295]
[1645020856236,98.08,99.868,99.752,2.24219713]
[1645020856436,15.029,99.85,99.751,38.2151]
[1645020857448,0.25,99.84,99.751,38.2151]
[1645020857648,15.2816,99.84,99.751,38.2151]
[1645020858047,15.2816,99.84,99.751,23.1943]
[1645020858650,0.9004,99.839,99.751,23.1943]
[1645020858851,15.033,99.83,99.751,23.1943]
[1645020860151,15.2803,99.84,99.751,23.1943]
[1645020860355,15.0303,99.84,99.751,23.1943]
[1645020860553,15.0303,99.84,99.752,51.88219713]
[1645020860953,15.0303,99.84,99.752,49.64]
[1645020861754,0.25,99.83,99.752,49.64]
[1645020861953,0.25,99.83,99.751,23.1943]
[1645020862153,15.0303,99.84,99.751,23.1943]
[1645020862354,23.4575,99.848,99.76,15.0299]
[1645020862554,23.4575,99.848,99.761,49.64]
[1645020862958,23.4575,99.848,99.763,49.64]
[1645020863155,23.4575,99.848,99.762,59.62]
[1645020863156,24.1501,99.889,99.766,59.62]
[1645020863356,24.1501,99.889,99.781,49.64]
[1645020863555,24.1501,99.889,99.79,15.0246]
[1645020864156,24.1501,99.889,99.791,2.23671204]
[1645020864558,0.25,99.879,99.791,51.87671204]
[1645020864956,15.0252,99.88,99.791,51.87671204]
[1645020865258,24.1501,99.889,99.791,49.64]
[1645020865858,0.8998,99.888,99.791,49.64]
[1645020866056,24.1501,99.889,99.791,49.64]
[1645020866257,0.25,99.879,99.791,49.64]
[1645020866757,15.0259,99.87,99.791,49.64]
[1645020867556,15.0259,99.87,99.784,14.7896]
[1645020868356,15.0259,99.87,99.79,15.0257]
[1645020868558,15.0259,99.87,99.791,49.64]
[1645020869258,15.0259,99.87,99.782,62.1968]
[1645020869660,0.25,99.86,99.782,62.1968]
[1645020869859,15.2774,99.86,99.783,5.008]
[1645020870260,0.25,99.86,99.782,62.1968]
[1645020870663,0.25,99.86,99.783,49.64]
[1645020871065,0.25,99.86,99.791,49.64]
[1645020872867,15.277,99.86,99.791,49.64]
[1645020873067,98.08,99.859,99.782,46.9213]
[1645020873271,100.52017527,99.859,99.75,14.4]
[1645020873467,146.34007527,99.859,99.751,47.5547]
[1645020873667,143.8999,99.859,99.751,47.5547]
[1645020874270,98.08,99.849,99.76,15.0303]
[1645020874469,100.52017527,99.858,99.76,15.0303]
[1645020874671,98.08,99.858,99.761,49.64]
[1645020875370,3.34357527,99.857,99.761,49.64]
[1645020875572,2.44017527,99.857,99.761,49.64]
[1645020875972,98.08,99.839,99.751,47.5547]
[1645020876174,23.4819,99.839,99.751,47.5547]
[1645020876776,23.4819,99.839,99.752,49.64]
[1645020877383,15.0315,99.83,99.752,49.64]
[1645020877777,15.0315,99.83,99.752,54.65]
[1645020878281,15.0315,99.83,99.753,2.23671204]
[1645020878679,15.0315,99.83,99.752,49.64]
[1645020878880,15.0315,99.83,99.753,5.01]
[1645020879280,0.25,99.82,99.753,5.01]
[1645020879680,15.2827,99.82,99.752,49.64]
[1645020881582,15.2827,99.82,99.752,47.72372475]
[1645020884003,15.2827,99.82,99.753,5.01]
[1645020884811,15.2827,99.82,99.752,47.72372475]
[1645020886211,15.2827,99.82,99.753,5.01]
[1645020886411,15.2827,99.82,99.752,47.72372475]
[1645020888112,15.2827,99.82,99.753,5.01]
[1645020888314,98.08,99.819,99.753,5.01]
[1645020888615,98.08,99.809,99.741,113.5]
[1645020889012,2.44017527,99.818,99.74,2.8996801]
[1645020889214,0.25,99.82,99.74,2.8996801]
[1645020889415,98.33,99.82,99.74,2.8996801]
[1645020889713,15.036,99.8,99.74,2.8996801]
[1645020889914,15.036,99.8,99.741,5.011]
[1645020890719,15.036,99.8,99.74,2.8996801]
[1645020891518,15.036,99.8,99.741,5.011]
[1645020891717,15.036,99.8,99.74,2.8996801]
[1645020892516,15.0344,99.81,99.74,2.8996801]
[1645020892717,15.0344,99.81,99.741,49.64]
[1645020894327,0.25,99.8,99.741,49.64]
[1645020895736,15.2853,99.8,99.741,49.64]
[1645020901567,15.2853,99.8,99.74,2.8996801]
[1645020901951,98.08,99.799,99.74,2.8996801]
[1645020902153,15.0403,99.78,99.74,2.8996801]
[1645020902555,98.08,99.779,99.74,2.8996801]
[1645020902956,6.0,99.79,99.74,2.8996801]
[1645020903353,98.08,99.789,99.74,2.8996801]
[1645020903553,6.0,99.79,99.74,2.8996801]
[1645020903955,15.0413,99.77,99.74,2.8996801]
[1645020904953,15.0413,99.77,99.692,49.64]
[1645020905157,15.0413,99.77,99.663,14.9275]
[1645020905158,100.52017527,99.769,99.663,14.9275]
[1645020905356,147.76017527,99.769,99.663,14.9275]
[1645020905557,15.0461,99.74,99.663,14.9275]
[1645020906859,15.0461,99.74,99.664,49.64]
[1645020908258,98.08,99.739,99.66,17.28281204]
[1645020908458,15.0469,99.73,99.656,47.4687]
[1645020909061,98.08,99.729,99.656,47.4687]
[1645020909660,15.0489,99.71,99.656,47.4687]
[1645020911461,15.0489,99.71,99.641,49.64]
[1645020913064,15.048,99.72,99.641,51.87671204]
[1645020913264,14.4,99.76,99.646,157.7]
[1645020913463,14.4,99.77,99.658,113.5]
[1645020913665,22.688,99.769,99.659,47.9289]
[1645020914063,22.688,99.769,99.66,98.08]
[1645020914263,22.688,99.769,99.66,100.31671204]
[1645020914662,22.688,99.769,99.661,2.23671204]
[1645020914865,15.043,99.76,99.671,98.08]
[1645020915066,22.688,99.769,99.676,147.72]
[1645020915263,22.688,99.769,99.681,49.64]
[1645020915772,22.688,99.769,99.682,2.23671204]
[1645020915971,22.188,99.769,99.682,2.23671204]
[1645020916164,22.188,99.769,99.681,49.64]
[1645020916165,15.0422,99.76,99.681,49.64]
[1645020916463,15.0422,99.76,99.672,22.8001]
[1645020916663,0.25,99.75,99.672,22.8001]
[1645020916862,0.25,99.75,99.659,23.7273]
[1645020917868,15.0469,99.73,99.659,23.7273]
[1645020919067,98.08,99.729,99.649,22.5423]
[1645020919270,15.0506,99.71,99.631,23.3778]
[1645020919869,15.0506,99.71,99.632,2.23671204]
[1645020920467,24.3387,99.739,99.641,157.7]
[1645020920868,24.3387,99.739,99.642,18.0902897]
[1645020921069,24.3387,99.739,99.647,157.7]
[1645020921269,24.3387,99.739,99.66,49.64]
[1645020921470,24.3387,99.739,99.668,98.08]
[1645020921670,24.3387,99.739,99.661,22.5424]
[1645020921671,24.3387,99.739,99.682,59.62]
[1645020921867,24.3387,99.739,99.685,98.08]
[1645020922068,24.3387,99.739,99.684,59.62]
[1645020922069,24.3387,99.739,99.688,49.64]
[1645020922268,24.3387,99.739,99.684,59.62]
[1645020922269,24.3387,99.739,99.69,49.64]
[1645020922473,24.3387,99.739,99.695,98.08]
[1645020922670,23.6995,99.779,99.7,15.039]
[1645020922870,0.8987,99.809,99.704,157.7]
[1645020923070,0.8987,99.809,99.709,109.26]
[1645020923270,47.8659,99.826,99.717,59.62]
[1645020923471,47.8659,99.826,99.724,207.34]
[1645020923673,47.8659,99.826,99.724,214.97]
[1645020923870,47.8659,99.826,99.741,98.08]
[1645020924072,47.8659,99.826,99.743,98.08]
[1645020924677,2.70379776,99.883,99.742,24.4952]
[1645020924678,2.44017527,99.854,99.752,59.62]
[1645020924878,15.0291,99.85,99.755,98.08]
[1645020925076,6.0,99.844,99.758,49.64]
[1645020925478,15.0291,99.85,99.758,49.64]
[1645020925679,15.0291,99.85,99.76,49.64]
[1645020925880,15.0291,99.85,99.771,49.64]
[1645020926480,15.0291,99.85,99.77,15.0291]
[1645020927082,15.0275,99.87,99.781,49.64]
[1645020927281,0.9199,99.869,99.784,59.62]
[1645020927483,1.35944581,99.884,99.788,59.62]
[1645020927688,2.44017527,99.897,99.789,49.64]
[1645020927890,1.35944581,99.903,99.793,49.64]
[1645020928188,14.4,99.93,99.782,25.33891204]
[1645020928189,1.35944581,99.905,99.798,59.62]
[1645020928391,1.35944581,99.908,99.801,98.08]
[1645020928589,1.35944581,99.909,99.81,15.0211]
[1645020928991,99.43944581,99.909,99.811,49.64]
[1645020929190,6.0,99.899,99.799,23.5037]
[1645020929791,6.0,99.899,99.8,15.0233]
[1645020930003,1.35944581,99.914,99.801,98.08]
[1645020930193,15.0206,99.92,99.808,59.62]
[1645020930395,15.0206,99.92,99.813,98.08]
[1645020930593,15.0206,99.92,99.816,59.62]
[1645020930792,15.0206,99.92,99.816,157.7]
[1645020930993,15.0206,99.92,99.817,49.64]
[1645020931294,6.0,99.91,99.821,49.64]
[1645020931695,29.4206,99.92,99.833,49.64]
[1645020931993,29.4206,99.92,99.83,15.0189]
[1645020931994,1.35944581,99.95,99.835,49.64]
[1645020932192,6.0,99.94,99.835,49.64]
[1645020932395,6.0,99.94,99.837,49.64]
[1645020932898,6.0,99.94,99.841,49.64]
[1645020933797,21.0176,99.94,99.841,49.64]
[1645020934196,15.0176,99.94,99.841,49.64]
[1645020934596,6.0,99.93,99.836,23.2375]
[1645020934996,15.0194,99.93,99.836,23.2375]
[1645020935199,0.25,99.92,99.836,23.2375]
[1645020935813,6.0,99.939,99.84,15.0166]
[1645020938120,15.018,99.94,99.84,15.0166]
[1645020938515,0.25,99.93,99.84,15.0166]
[1645020938717,15.018,99.94,99.84,15.0166]
[1645020939817,6.0,99.93,99.84,15.0166]
[1645020940219,15.018,99.94,99.84,15.0166]
[1645020940621,6.0,99.93,99.84,15.0166]
[1645020940820,15.018,99.94,99.84,15.0166]
[1645020941219,22.8745,99.949,99.84,15.0166]
[1645020942023,22.8745,99.949,99.85,15.0145]
[1645020942222,22.8745,99.949,99.852,98.08]
[1645020942420,22.8745,99.949,99.853,59.62]
[1645020942723,22.8745,99.949,99.854,157.7]
[1645020943123,22.8745,99.949,99.856,98.08]
[1645020943521,22.8745,99.949,99.862,98.08]
[1645020943721,22.8745,99.949,99.867,49.64]
[1645020943922,0.25,99.939,99.867,49.64]
[1645020944523,0.11623484,99.958,99.872,98.08]
[1645020944723,0.11623484,99.958,99.877,49.64]
[1645020944925,0.11623484,99.958,99.879,49.64]
[1645020945125,0.11623484,99.958,99.882,157.7]
[1645020945324,0.11623484,99.958,99.886,157.7]
[1645020945523,0.11623484,99.958,99.89,98.08]
[1645020945727,0.11623484,99.958,99.891,49.64]
[1645020946927,0.25,99.95,99.891,49.64]
[1645020949131,0.11623484,99.958,99.891,49.64]
[1645020950635,0.11623484,99.958,99.881,49.64]
[1645020950837,0.25,99.95,99.881,49.64]
[1645020951337,0.11623484,99.958,99.881,49.64]
[1645020952436,0.11623484,99.958,99.89,15.0107]
[1645020952637,0.11623484,99.958,99.891,49.64]
[1645020955344,0.11623484,99.958,99.901,49.64]
[1645020955842,0.11623484,99.958,99.907,49.64]
[1645020956341,0.11623484,99.958,99.908,23.7093]
[1645020956545,0.11623484,99.958,99.91,15.008]
[1645020957345,0.11623484,99.958,99.911,49.64]
[1645020957944,0.11623484,99.958,99.921,49.64]
[1645020960047,0.11623484,99.958,99.92,15.0072]
[1645020960247,0.11623484,99.958,99.91,15.0088]
[1645020963279,0.11623484,99.958,99.911,49.64]
[1645020963674,0.11623484,99.958,99.921,49.64]
[1645020965075,0.11623484,99.958,99.931,49.64]
[1645020966076,0.11623484,99.958,99.94,15.0046]
[1645020966481,0.23246968,99.961,99.941,102.0]
[1645020966679,0.57730504,99.961,99.941,102.0]
[1645020966978,0.57730504,99.961,99.931,49.64]
[1645020967378,0.57730504,99.961,99.941,49.64]
[1645020967779,0.46493936,99.961,99.943,49.64]
[1645020968580,0.46493936,99.961,99.925,98.08]
[1645020968581,6.0,99.982,99.945,49.64]
[1645020969185,2.06581,100.02,99.948,135.08]
[1645020969381,0.0050932,100.01,99.954,49.64]
[1645020969580,0.0050932,100.01,99.963,157.7]
[1645020969880,0.0050932,100.01,99.969,157.7]
[1645020970080,0.0050932,100.01,99.974,49.64]
[1645020970281,0.0050932,100.01,99.981,59.62]
[1645020970482,0.0050932,100.01,99.982,49.64]
[1645020971483,0.0050932,100.01,99.991,49.64]
[1645020972684,0.0050932,100.01,100.0,3.03219997]
[1645020973484,0.0050932,100.01,100.0,18.02819997]
[1645020974983,0.2450932,100.01,100.0,18.02819997]
[1645020975484,0.0001864,100.02,100.01,115.9945]
[1645020975686,0.0001864,100.02,100.01,14.9945]
[1645020975884,0.0001864,100.02,100.01,15.2445]
[1645020978087,0.65848432,100.02,100.01,15.2445]
[1645020979491,6.0,100.05,100.02,73.09]
[1645020979790,6.1965888,100.05,100.03,0.04165429]
[1645020979990,0.1965888,100.05,100.03,0.04165429]
[1645020980188,0.1965888,100.05,99.98,49.9829]
[1645020980399,0.1965888,100.05,99.97,24.6674]
[1645020981190,6.1965888,100.05,99.98,14.9985]
[1645020981391,0.1965888,100.05,99.98,14.9985]
[1645020981600,0.1965888,100.05,99.981,49.64]
[1645020982791,0.4465888,100.05,99.991,49.64]
[1645020984095,0.4465888,100.05,99.99,14.997]
[1645020984291,119.5247888,100.05,99.98,14.9985]
[1645020984493,133.9247888,100.05,99.95,49.9949]
[1645020984690,98.08,100.04,99.94,23.9491]
[1645020985091,2.44017527,100.03,99.94,23.9491]
[1645020985290,107.53017527,100.03,99.94,23.9491]
[1645020985491,107.53017527,100.03,99.941,49.64]
[1645020985890,122.53207527,100.03,99.941,49.64]
[1645020986093,122.72866407,100.03,99.941,49.64]
[1645020988595,22.2084888,100.03,99.941,49.64]
[1645020988795,15.1984888,100.03,99.95,15.002]
[1645020989593,15.1984888,100.03,99.951,49.64]
[1645020989996,15.1984888,100.03,99.962,49.64]
[1645020990897,0.1965888,100.03,99.962,109.26]
[1645020991097,0.1965888,100.03,99.97,98.08]
[1645020991494,0.1965888,100.03,99.98,49.64]
[1645020992096,0.1965888,100.03,99.99,64.6367]
[1645020995002,0.1965888,100.03,99.98,14.9989]
[1645020995199,7.8145888,100.03,99.97,46.957]
[1645020995599,22.8155888,100.03,99.97,46.957]
[1645020995801,22.8155888,100.03,99.931,2.20771898]
[1645020995998,22.8155888,100.03,99.91,194.2911]
[1645020995999,22.8155888,100.03,99.932,29.1912]
[1645020996199,22.8155888,100.03,99.932,24.1912]
[1645020996901,22.8155888,100.03,99.95,15.0033]
[1645020997099,120.8955888,100.03,99.95,15.0033]
[1645020997402,22.8155888,100.03,99.95,15.0033]
[1645020998102,15.1975888,100.03,99.95,15.0033]
[1645020999306,113.2775888,100.03,99.95,15.0033]
[1645020999704,113.2775888,100.03,99.95,14.66751387]
[1645020999908,15.1975888,100.03,99.95,14.66751387]
[1645021000506,113.2775888,100.03,99.95,14.66751387]
[1645021000907,15.1975888,100.03,99.95,14.66751387]
[1645021001108,98.08,100.02,99.95,14.66751387]
[1645021001310,98.08,100.02,99.932,73.8312]
[1645021001510,15.0063,100.0,99.932,44.53646396]
[1645021004516,15.0063,100.0,99.93,15.0053]
[1645021005322,24.2501888,100.02,99.93,15.0053]
[1645021005518,24.2501888,100.02,99.95,15.0015]
[1645021005719,24.2501888,100.02,99.96,49.64]
[1645021006318,24.2501888,100.02,99.96,147.72]
[1645021006519,24.2501888,100.02,99.961,2.20771898]
[1645021006921,24.2501888,100.02,99.97,172.6992]
[1645021007320,24.2501888,100.02,99.971,2.20771898]
[1645021007922,24.2501888,100.02,99.98,64.6353]
[1645021010122,0.3931776,100.02,99.98,222.3353]
[1645021010542,0.3931776,100.02,99.981,2.20771898]
[1645021010738,0.3931776,100.02,99.99,14.9929]
[1645021011840,0.0031776,100.02,100.0,49.64]
[1645021012039,0.0031776,100.02,100.01,64.6335]
[1645021012241,0.0031776,100.02,100.01,64.8835]
[1645021012441,0.0031776,100.02,100.01,15.32141284]
[1645021013744,0.0031776,100.02,100.01,64.96141284]
[1645021014344,0.0031776,100.02,100.01,15.32141284]
[1645021015751,0.0031776,100.02,100.01,15.2435]
[1645021016147,0.0031776,100.02,100.01,15.32141284]
[1645021017348,6.56162074,100.06,100.01,15.32141284]
[1645021017550,0.25,100.05,100.01,15.07141284]
[1645021017751,0.25,100.05,100.01,0.07791284]
[1645021018055,0.25,100.05,99.96,48.6342]
[1645021018750,14.9983,100.05,99.99,14.9995]
[1645021018950,6.56162074,100.06,99.99,14.9995]
[1645021020952,21.55762074,100.06,99.99,14.9995]
[1645021021349,119.63762074,100.06,99.99,14.9995]
[1645021022752,0.25,100.05,99.99,14.9995]
[1645021022952,6.56162074,100.06,99.99,113.0795]
[1645021023355,6.56162074,100.06,99.99,14.9995]
[1645021023759,6.56162074,100.06,100.0,49.64]
[1645021024155,6.56162074,100.06,100.01,15.2438]
[1645021031564,0.56162074,100.06,100.01,172.9438]
[1645021032058,0.56162074,100.06,100.03,14.9882]
[1645021032262,0.56162074,100.06,100.04,50.36094587]
[1645021032460,47.5346978,100.1,100.04,50.36094587]
[1645021032461,117.54163612,100.15,100.06,36.0]
[1645021032663,4.5231018,100.15,100.06,193.7]
[1645021032962,0.48146568,100.15,100.08,157.7]
[1645021033164,0.48146568,100.15,100.08,187.0797]
[1645021033362,0.48146568,100.15,100.09,2.45771898]
[1645021033765,0.48146568,100.15,100.09,0.25]
[1645021034369,0.48146568,100.15,100.1,14.9766]
[1645021034566,0.48146568,100.15,100.1,17.17885706]
[1645021034773,0.48146568,100.15,100.11,0.25]
[1645021035767,0.48146568,100.15,100.1,0.25]
[1645021036066,0.48146568,100.15,100.13,49.64]
[1645021036270,0.48146568,100.15,100.14,1.89517071]
[1645021039177,0.42516974,100.16,100.15,0.48]
[1645021039877,0.42516974,100.16,100.14,16.87017071]
[1645021040579,0.42516974,100.16,100.14,1.89517071]
[1645021046197,0.42516974,100.16,100.14,16.86987071]
[1645021046901,0.42516974,100.16,100.14,1.89517071]
[1645021047899,0.19934518,100.16,100.14,1.89517071]
[1645021048299,0.19934518,100.16,100.15,49.89]
[1645021050401,0.19934518,100.16,100.15,64.8638]
[1645021053811,0.19417544,100.16,100.15,64.8638]
[1645021054013,0.96209426,100.2,100.17,64.6096]
[1645021054216,0.29915186,100.24,100.2,36.0]
[1645021054418,0.03174406,100.24,100.22,49.0]
[1645021054615,1.27500706,100.27,100.23,73.0]
[1645021054814,1.27500706,100.27,100.24,0.25]
[1645021055014,2.75670518,100.27,100.24,0.25]
[1645021055213,2.75670518,100.27,100.25,14.9593]
[1645021055413,2.75670518,100.27,100.26,0.70263565]
[1645021056113,2.75670518,100.27,100.25,14.9593]
[1645021056321,6.0,100.26,100.25,14.9593]
[1645021056516,2.75670518,100.27,100.26,3.03219997]
[1645021056715,2.75670518,100.27,100.26,17.99009997]
[1645021059319,5.614e-05,100.28,100.27,2.75]
[1645021059521,5.614e-05,100.28,100.27,17.705]
[1645021060118,5.614e-05,100.28,100.27,52.39]
[1645021061822,5.614e-05,100.28,100.27,49.64]
[1645021062225,5.614e-05,100.28,100.26,3.03219997]
[1645021063049,5.614e-05,100.28,100.19,15.3081]
[1645021063250,5.614e-05,100.28,100.17,23.0366]
[1645021063448,5.614e-05,100.28,100.17,45.5536]
[1645021063649,5.614e-05,100.28,100.18,98.08]
[1645021063852,5.614e-05,100.28,100.18,187.0656]
[1645021064250,5.614e-05,100.28,100.21,49.64]
[1645021064654,5.614e-05,100.28,100.19,20.4]
[1645021064851,6.4522649,100.29,100.2,162.687]
[1645021065053,6.4522649,100.29,100.2,157.7]
[1645021065250,6.4522649,100.29,100.2,59.62]
[1645021065852,6.4522649,100.29,100.21,0.25]
[1645021066054,0.25,100.28,100.21,0.25]
[1645021066453,0.4522649,100.29,100.21,0.25]
[1645021067053,111.9151627,100.3,100.22,69.0]
[1645021067256,98.08,100.3,100.2,49.64]
[1645021067456,112.48,100.3,100.2,49.64]
[1645021067858,0.25,100.29,100.2,49.64]
[1645021068462,14.9633,100.29,100.21,0.25]
[1645021068861,14.9633,100.29,100.2,49.64]
[1645021069661,14.9633,100.29,100.21,0.25]
[1645021069863,0.25,100.28,100.2,49.64]
[1645021070259,15.2146,100.28,100.2,49.64]
[1645021070660,113.2946,100.28,100.2,49.64]
[1645021070861,15.2146,100.28,100.19,28.6051]
[1645021071060,15.2146,100.28,100.2,0.25]
[1645021072761,113.2946,100.28,100.2,0.25]
[1645021074265,14.9646,100.28,100.2,0.25]
[1645021075064,113.0446,100.28,100.2,0.25]
[1645021075465,113.0446,100.28,100.18,2.0]
[1645021075771,113.0489,100.25,100.18,2.0]
[1645021075966,14.9689,100.25,100.18,2.0]
[1645021076366,113.0489,100.25,100.18,2.0]
[1645021077166,127.4489,100.25,100.18,2.0]
[1645021078466,29.3689,100.25,100.18,2.0]
[1645021079468,98.08,100.22,100.18,2.0]
[1645021079668,112.48,100.21,100.18,2.0]
[1645021080067,14.4,100.21,100.18,2.0]
[1645021080668,29.378,100.21,100.18,2.0]
[1645021081591,14.4,100.21,100.18,2.0]
[1645021081767,14.9734,100.22,100.18,2.0]
[1645021081967,14.4,100.23,100.18,2.0]
[1645021083369,98.08,100.22,100.18,2.0]
[1645021083770,0.25,100.21,100.14,46.9691]
[1645021083969,15.2259,100.21,100.12,19.9678]
[1645021084170,15.2259,100.21,100.12,68.7291]
[1645021084374,113.3059,100.21,100.13,4.991]
[1645021084571,15.2259,100.21,100.12,14.9768]
[1645021084769,37.2599,100.21,100.08,76.8072]
[1645021084970,37.2599,100.21,100.12,6.0]
[1645021085174,37.2599,100.21,100.11,4.991]
[1645021085371,98.08,100.2,100.1,14.9787]
[1645021085570,113.0617,100.18,100.11,4.992]
[1645021085769,118.5787,100.18,100.11,4.992]
[1645021085971,118.5787,100.18,100.1,14.9787]
[1645021086371,20.4987,100.18,100.11,4.993]
[1645021086571,20.4987,100.18,100.11,5.243]
[1645021086772,14.9817,100.18,100.12,14.9789]
[1645021087271,14.9817,100.18,100.08,52.4943]
[1645021087473,98.08,100.17,100.08,47.5023]
[1645021087673,14.9842,100.15,100.09,14.9834]
[1645021088271,112.73,100.17,100.09,14.9834]
[1645021088871,14.65,100.17,100.09,14.9834]
[1645021089172,29.6316,100.17,100.09,14.9834]
[1645021089372,14.65,100.17,100.09,14.9834]
[1645021089976,112.73,100.17,100.09,14.9834]
[1645021090875,127.7127,100.17,100.09,14.9834]
[1645021092079,127.7127,100.17,100.08,14.985]
[1645021094783,127.4627,100.17,100.08,14.985]
[1645021096186,0.25,100.16,100.08,14.985]
[1645021096486,113.3141,100.16,100.08,14.985]
[1645021097308,113.65494292,100.16,100.08,14.985]
[1645021097505,128.05494292,100.16,100.08,14.985]
[1645021097907,29.97494292,100.16,100.08,14.985]
[1645021098207,128.00654624,100.16,100.08,14.985]
[1645021098407,29.92654624,100.16,100.08,14.985]
[1645021099013,98.08,100.15,100.07,24.1687]
[1645021099212,14.4,100.14,100.04,49.956]
[1645021099409,14.4,100.14,100.03,23.946]
[1645021099410,98.08,100.13,100.03,23.946]
[1645021099618,104.456,100.13,100.04,4.996]
[1645021100211,119.64844624,100.13,100.04,4.996]
[1645021100414,122.08862151,100.13,100.04,4.996]
[1645021100612,122.08862151,100.13,100.03,23.946]
[1645021100813,137.07932151,100.13,100.04,14.9907]
[1645021101013,137.07932151,100.13,100.03,28.942]
[1645021101817,15.19244624,100.13,100.04,8.1928141]